bitfinex/quotes_SOLUSD_20250819
["timestamp","ask_amount","ask_price","bid_price","bid_amount"]
[1755573331712,4.99802685,182.06,182.04,0.03]
[1755573331916,40.45,182.09,182.04,10.52130185]
[1755573332143,0.69,182.11,182.06,4.99802685]
[1755573332334,39.76,182.1,182.07,4.99802685]
[1755573332746,0.69,182.14,182.09,4.99802685]
[1755573332934,4.01841423,182.15,182.13,4.99802685]
[1755573333130,0.06,182.16,182.1,0.67]
[1755573333131,39.82,182.16,182.12,10.48884959]
[1755573333444,0.69,182.15,182.12,5.49082274]
[1755573333643,44.81802685,182.16,182.1,6.16122078]
[1755573333851,0.69,182.14,182.1,10.48924763]
[1755573334347,40.51,182.16,182.11,5.66802685]
[1755573334726,5.68802685,182.15,182.1,10.48924763]
[1755573334948,39.82,182.16,182.11,4.99802685]
[1755573334949,0.69,182.14,182.11,4.99802685]
[1755573335255,44.81802685,182.16,182.11,4.99802685]
[1755573335256,4.02072259,182.15,182.12,4.99802685]
[1755573335458,4.02072259,182.15,182.11,6.16097133]
[1755573335459,39.82,182.16,182.14,4.99802685]
[1755573336291,39.82,182.16,182.15,4.99802685]
[1755573336430,0.06,182.16,182.15,5.66802685]
[1755573337059,0.06,182.16,182.15,11.15800763]
[1755573337452,0.06,182.16,182.15,10.48800763]
[1755573337860,0.06,182.16,182.12,26.67]
[1755573337861,0.06,182.16,182.12,0.67]
[1755573338031,0.06,182.16,182.14,4.99802685]
[1755573338343,0.06,182.16,182.15,4.99802685]
[1755573338544,0.06,182.16,182.15,30.99802685]
[1755573338744,0.06,182.16,182.15,31.65802685]
[1755573339132,0.06,182.16,182.15,31.48998078]
[1755573339450,0.06,182.16,182.15,10.48800763]
[1755573339761,0.06,182.16,182.14,10.48825524]
[1755573339945,0.06,182.16,182.13,10.48855967]
[1755573340148,4.08868567,182.16,182.13,10.48855967]
[1755573340354,0.06,182.16,182.13,11.14855967]
[1755573340553,0.69,182.15,182.1,0.66]
[1755573340760,0.69,182.14,182.1,5.65802685]
[1755573340966,0.69,182.14,182.11,4.99802685]
[1755573341143,0.69,182.14,182.11,10.48914128]
[1755573341660,9.02885837,182.14,182.08,26.66]
[1755573341835,4.72011284,182.13,182.09,5.49172309]
[1755573342031,0.69,182.13,182.09,5.49172309]
[1755573342459,4.72259294,182.12,182.09,5.49172309]
[1755573342672,14.11535529,182.14,182.07,0.03]
[1755573342871,12.65789809,182.13,182.08,5.65802685]
[1755573343075,4.72288391,182.12,182.08,5.65802685]
[1755573343246,4.03288391,182.11,182.09,5.49178977]
[1755573343448,4.31698733,182.12,182.09,5.49178977]
[1755573343647,4.0361944,182.11,182.09,5.49178977]
[1755573343961,3.62698733,182.13,182.09,5.49178977]
[1755573344148,7.66294689,182.12,182.09,5.49178977]
[1755573344348,4.03595956,182.11,182.09,5.49178977]
[1755573344569,3.63477448,182.12,182.09,5.49178977]
[1755573344767,4.04003778,182.11,182.1,5.65802685]
[1755573345267,39.8,182.16,182.09,5.49178977]
[1755573345268,9.32284346,182.13,182.09,5.49178977]
[1755573345471,13.36348471,182.12,182.08,5.49204517]
[1755573345770,13.36341513,182.11,182.07,0.03]
[1755573345965,4.04064125,182.1,182.07,0.03]
[1755573346178,4.04064125,182.09,182.07,0.03]
[1755573346471,39.72,182.11,182.07,6.18227932]
[1755573346684,7.67582299,182.1,182.07,5.52227932]
[1755573346846,4.03981662,182.09,182.07,5.52227932]
[1755573347042,39.72,182.11,182.07,5.52227932]
[1755573347246,7.67756097,182.1,182.07,5.52227932]
[1755573347460,40.41,182.11,182.07,0.03]
[1755573347675,4.99802685,182.09,182.07,0.03]
[1755573347875,12.67663258,182.08,182.07,0.03]
[1755573348189,7.67851044,182.08,182.07,0.03]
[1755573348351,7.67974627,182.08,182.07,0.03]
[1755573348686,13.36777312,182.08,182.07,0.03]
[1755573350065,7.67974627,182.08,182.07,0.03]
[1755573352272,39.72,182.09,182.07,0.69]
[1755573352868,39.72,182.09,182.07,5.68802685]
[1755573353084,39.72,182.09,182.08,0.66]
[1755573354077,39.72,182.09,182.08,11.15011823]
[1755573354276,0.06,182.1,182.08,11.15011823]
[1755573354480,0.06,182.1,182.09,4.99802685]
[1755573354854,0.06,182.1,182.08,10.49011823]
[1755573355053,0.06,182.1,182.08,5.49209138]
[1755573355251,0.75,182.1,182.07,0.03]
[1755573355460,0.69,182.09,182.07,0.03]
[1755573355674,40.41,182.09,182.07,0.03]
[1755573355886,39.72,182.09,182.07,0.03]
[1755573356057,40.41,182.09,182.07,0.03]
[1755573357272,5.68802685,182.08,182.07,0.03]
[1755573357653,0.69,182.08,182.07,0.03]
[1755573358680,39.72,182.09,182.07,0.03]
[1755573359452,39.72,182.09,182.07,5.68802685]
[1755573359687,132.76,182.1,182.08,4.99802685]
[1755573359868,132.76,182.1,182.07,5.02802685]
[1755573360498,4.99802685,182.08,182.07,0.03]
[1755573360663,15.10621557,182.07,182.05,0.03]
[1755573360862,67.51035369,182.06,182.05,0.03]
[1755573361074,68.20035369,182.06,182.05,0.03]
[1755573362260,71.06194826,182.06,182.05,0.03]
[1755573362468,76.55464297,182.06,182.05,0.03]
[1755573362873,7.68611127,182.06,182.05,0.03]
[1755573363195,39.72,182.06,182.05,0.03]
[1755573364398,39.72,182.06,182.05,8.54962142]
[1755573364567,39.72,182.06,182.05,14.04261784]
[1755573365185,39.72,182.08,182.05,14.04261784]
[1755573366317,39.7,182.08,182.05,0.03]
[1755573366483,40.39,182.08,182.05,0.03]
[1755573367082,39.7,182.08,182.05,7.88962142]
[1755573367301,39.7,182.08,182.05,8.54962142]
[1755573368979,39.7,182.08,182.05,14.04252474]
[1755573369873,39.7,182.08,182.05,13.38252474]
[1755573370384,39.7,182.08,182.06,7.85962142]
[1755573370590,40.38,182.08,182.05,7.88962142]
[1755573371411,40.38,182.08,182.05,13.38247686]
[1755573371615,8.53962142,182.07,182.05,0.03]
[1755573371782,47.55962142,182.06,182.05,0.03]
[1755573371982,48.23962142,182.06,182.05,0.03]
[1755573372197,173.08,182.06,182.05,0.03]
[1755573373692,172.4,182.06,182.05,0.03]
[1755573374313,172.4,182.06,182.05,7.88962142]
[1755573375317,173.08,182.06,182.05,0.03]
[1755573376785,184.58394231,182.06,182.05,0.03]
[1755573377932,184.58462809,182.06,182.05,0.03]
[1755573378104,176.72500667,182.06,182.05,0.03]
[1755573379334,184.58462809,182.06,182.05,0.03]
[1755573379502,205.18353837,182.06,182.05,0.03]
[1755573379702,209.23373742,182.06,182.05,0.03]
[1755573380035,76.53373742,182.06,182.05,0.03]
[1755573381009,81.08999575,182.06,182.05,0.03]
[1755573382146,15.10621557,182.05,182.04,0.03]
[1755573382360,15.10621557,182.05,182.03,0.03]
[1755573382361,31.34104271,182.05,182.03,0.03]
[1755573382650,15.10621557,182.02,182.01,0.03]
[1755573382816,70.34104271,182.02,182.01,0.03]
[1755573383020,66.97084366,182.02,182.01,0.03]
[1755573383217,71.02007085,182.02,182.01,0.03]
[1755573383747,81.0277925,182.02,182.01,0.03]
[1755573385058,48.96583699,182.0,181.95,0.03]
[1755573385213,96.34007085,182.0,181.95,0.03]
[1755573385413,97.02007085,182.0,181.95,0.03]
[1755573385817,102.51457634,182.0,181.95,0.03]
[1755573386642,94.65495492,182.0,181.95,0.03]
[1755573386826,102.51457634,182.0,181.95,0.73]
[1755573387463,102.51457634,182.0,181.95,0.03]
[1755573388118,101.83457634,182.0,181.95,0.73]
[1755573388327,101.83457634,182.0,181.96,0.7]
[1755573388619,66.29084366,182.0,181.97,0.73]
[1755573388953,70.33146132,182.0,181.97,0.73]
[1755573389120,70.33146132,182.0,181.97,0.03]
[1755573389329,47.36562433,182.0,181.99,0.73]
[1755573389557,43.32500667,182.0,181.99,0.73]
[1755573389850,43.31675112,182.0,181.99,0.73]
[1755573390957,43.31675112,182.0,181.99,0.03]
[1755573391329,55.21792204,182.0,181.99,0.03]
[1755573392157,55.21856315,182.0,181.99,0.03]
[1755573392359,47.35894173,182.0,181.99,0.73]
[1755573392523,47.35894173,182.0,181.99,0.03]
[1755573392733,55.21856315,182.0,181.99,0.03]
[1755573393032,76.49970837,182.0,181.99,0.03]
[1755573395247,76.49838801,182.0,181.99,0.03]
[1755573395578,107.05227946,182.0,181.99,0.03]
[1755573396064,41.10621557,181.98,181.97,0.03]
[1755573396281,101.81899187,181.98,181.97,0.03]
[1755573396456,102.49899187,181.98,181.97,0.03]
[1755573399068,102.49899187,181.98,181.97,1e-08]
[1755573399271,41.10621557,181.96,181.95,0.03]
[1755573399445,96.32388252,181.96,181.95,0.03]
[1755573399647,97.00388252,181.96,181.95,0.03]
[1755573400349,94.13892831,181.96,181.95,0.03]
[1755573401464,95.59334724,181.96,181.95,0.03]
[1755573401775,15.10621557,181.94,181.93,0.03]
[1755573401959,94.8077634,181.94,181.93,0.03]
[1755573402158,41.10621557,181.93,181.91,0.03]
[1755573402350,54.44852034,181.93,181.91,0.03]
[1755573402774,54.44852034,181.93,181.92,1e-08]
[1755573403568,19.44513991,181.93,181.92,1e-08]
[1755573403775,18.83892434,181.93,181.92,1e-08]
[1755573404374,18.15892434,181.93,181.92,1e-08]
[1755573404554,57.81892434,181.93,181.92,1e-08]
[1755573404883,13.73928335,181.96,181.92,0.68000001]
[1755573404884,4.99466721,181.96,181.92,0.68000001]
[1755573405045,4.99466721,181.93,181.92,0.68000001]
[1755573405245,44.67466721,181.93,181.92,1e-08]
[1755573405462,44.67466721,181.93,181.92,0.68000001]
[1755573406459,62.65474876,181.93,181.92,1e-08]
[1755573406662,76.48481136,181.93,181.92,1e-08]
[1755573407067,15.10621557,181.92,181.91,0.03]
[1755573407256,31.30819179,181.92,181.91,0.03]
[1755573407677,36.80511351,181.92,181.91,0.03]
[1755573408080,62.80511351,181.92,181.91,0.03]
[1755573408256,36.80511351,181.92,181.91,0.03]
[1755573409390,36.80511351,181.92,181.9,0.03]
[1755573409569,102.48541569,181.91,181.9,0.03]
[1755573410571,102.47770063,181.91,181.9,0.03]
[1755573411157,102.47652593,181.91,181.9,0.03]
[1755573411487,101.79652593,181.91,181.9,0.03]
[1755573411693,54.24799274,181.91,181.9,0.03]
[1755573411904,4.0194889,181.91,181.9,0.71]
[1755573412186,51.56802209,181.91,181.9,0.71]
[1755573412357,43.6994889,181.91,181.9,0.71]
[1755573412778,51.56963897,181.91,181.9,0.71]
[1755573413084,51.56963897,181.91,181.9,0.03]
[1755573413274,43.70110578,181.91,181.9,0.03]
[1755573413581,60.6862843,181.91,181.9,0.03]
[1755573413962,75.79249987,181.91,181.9,0.03]
[1755573415378,76.47249987,181.91,181.9,0.03]
[1755573416459,102.47249987,181.91,181.9,0.03]
[1755573417693,101.79249987,181.91,181.9,0.03]
[1755573419386,106.34639132,181.91,181.9,0.03]
[1755573419699,106.34927956,181.91,181.9,0.03]
[1755573419893,107.02927956,181.91,181.9,0.03]
[1755573420575,106.34927956,181.91,181.9,0.03]
[1755573420974,101.79538811,181.91,181.9,0.03]
[1755573421370,93.92685492,181.91,181.9,0.03]
[1755573421602,30.61816421,181.91,181.9,0.71]
[1755573421796,62.40963102,181.91,181.9,0.71]
[1755573422002,70.27816421,181.91,181.9,0.71]
[1755573422297,75.77538811,181.91,181.9,0.71]
[1755573422594,80.32927956,181.91,181.9,0.03]
[1755573422797,67.90685492,181.91,181.9,0.03]
[1755573422972,75.77538811,181.91,181.9,0.03]
[1755573423372,80.32927956,181.91,181.9,0.03]
[1755573425386,15.10621557,181.9,181.89,0.03]
[1755573425580,37.36221338,181.9,181.88,0.03]
[1755573425901,108.52004173,181.89,181.88,0.03]
[1755573426479,68.18004173,181.89,181.88,0.03]
[1755573426684,101.77599256,181.89,181.88,0.03]
[1755573426903,200.60745937,181.89,181.88,0.71]
[1755573427084,208.47599256,181.89,181.88,0.71]
[1755573427891,213.03762654,181.89,181.88,0.03]
[1755573428303,205.62119755,181.89,181.88,0.03]
[1755573429385,210.16689768,181.89,181.88,0.03]
[1755573430006,205.62119755,181.89,181.88,0.03]
[1755573430405,210.16663259,181.89,181.88,0.03]
[1755573433089,205.62119755,181.89,181.88,0.03]
[1755573433425,210.16663259,181.89,181.88,0.03]
[1755573434700,205.62119755,181.89,181.88,0.03]
[1755573435621,185.51831535,181.89,181.88,0.74]
[1755573435924,210.86663259,181.89,181.88,0.03]
[1755573436107,206.32119755,181.89,181.88,0.03]
[1755573437013,206.32381117,181.89,181.88,0.03]
[1755573437220,205.62381117,181.89,181.88,0.03]
[1755573437396,210.17574715,181.89,181.88,0.03]
[1755573437596,77.47574715,181.89,181.88,0.03]
[1755573437812,72.92381117,181.89,181.88,0.03]
[1755573438030,77.47818926,181.89,181.88,0.03]
[1755573438248,73.62621253,181.89,181.88,0.03]
[1755573438537,72.92621253,181.89,181.88,0.03]
[1755573438752,57.81999696,181.89,181.88,0.74]
[1755573439706,57.81999696,181.89,181.88,0.03]
[1755573440108,62.37488097,181.89,181.88,0.03]
[1755573440916,57.37821434,181.89,181.88,0.74]
[1755573441117,47.32550198,181.89,181.88,0.74]
[1755573441330,52.32216861,181.89,181.88,0.74]
[1755573441711,47.32550198,181.89,181.88,0.74]
[1755573442112,43.27942143,181.89,181.88,0.74]
[1755573442311,3.61942143,181.89,181.88,0.74]
[1755573442609,0.06,181.93,181.88,11.23479726]
[1755573442813,4.11904673,181.93,181.92,4.99666663]
[1755573443123,3.71338696,181.93,181.92,5.70666663]
[1755573443326,3.71338696,181.93,181.92,0.71]
[1755573443527,7.77388186,181.93,181.92,0.71]
[1755573445427,3.71338696,181.93,181.92,6.20692172]
[1755573445739,0.06,181.93,181.92,11.20358835]
[1755573445929,0.06,181.93,181.92,6.20692172]
[1755573446127,0.06,181.93,181.92,11.20358835]
[1755573451343,0.06,181.94,181.92,11.20358835]
[1755573451644,1e-08,181.94,181.93,20.8128822]
[1755573453255,1e-08,181.94,181.93,26.30950177]
[1755573457159,1e-08,181.97,181.96,41.10621557]
[1755573457371,0.06,181.99,181.96,46.1028822]
[1755573457552,0.06,181.99,181.98,4.99666663]
[1755573457981,0.06,181.99,181.98,31.69666663]
[1755573458438,0.06,181.99,181.98,37.19177598]
[1755573461673,0.06,182.03,181.98,37.19177598]
[1755573461849,0.06,182.03,182.0,30.99666663]
[1755573462264,0.06,182.03,182.0,5.69666663]
[1755573463983,0.06,182.03,182.0,11.19117212]
[1755573464496,0.06,182.03,182.0,31.49450549]
[1755573464776,0.06,182.03,182.0,10.49117212]
[1755573464948,0.73,182.01,181.99,31.49475062]
[1755573465144,0.67,182.0,181.99,31.49475062]
[1755573465346,0.67,182.0,181.98,5.49502285]
[1755573465582,0.67,181.99,181.96,10.49237997]
[1755573465779,0.73,182.01,181.96,36.49237997]
[1755573465962,0.73,182.01,181.96,37.19237997]
[1755573466279,0.67,182.0,181.97,4.99666663]
[1755573466574,0.67,181.99,181.98,26.0]
[1755573466948,5.66666663,181.99,181.96,5.49571334]
[1755573467255,0.67,181.99,181.96,5.49571334]
[1755573467770,0.73,182.01,181.96,36.49237997]
[1755573467975,0.73,182.01,181.98,5.49510935]
[1755573468389,0.06,182.01,181.98,10.49177598]
[1755573468878,0.73,182.01,181.98,10.49177598]
[1755573469378,0.06,182.01,181.98,11.19177598]
[1755573469765,0.06,182.01,182.0,4.99666663]
[1755573469965,0.06,182.01,182.0,36.49117212]
[1755573470162,0.06,182.01,182.0,11.19117212]
[1755573470894,0.06,182.03,182.0,11.19117212]
[1755573471201,0.06,182.03,182.02,4.99666663]
[1755573471990,0.06,182.03,182.02,31.69666663]
[1755573472368,0.06,182.03,182.02,37.19056839]
[1755573474168,0.73,182.03,182.02,31.49390176]
[1755573474406,0.73,182.03,182.02,5.49390176]
[1755573474579,0.06,182.03,182.02,31.49390176]
[1755573474897,0.06,182.03,182.02,36.49056839]
[1755573477286,0.06,182.03,182.02,31.49390176]
[1755573477593,0.06,182.03,182.02,37.19056839]
[1755573477974,0.06,182.03,182.02,76.73056839]
[1755573478604,0.06,182.05,182.04,30.99666663]
[1755573479295,0.06,182.05,182.04,31.69666663]
[1755573479506,1e-08,182.05,182.04,31.69666663]
[1755573480572,1e-08,182.07,182.05,15.10621557]
[1755573480773,1e-08,182.07,182.06,59.6428822]
[1755573481001,1e-08,182.07,182.06,60.3428822]
[1755573481302,0.06,182.11,182.08,41.10621557]
[1755573481510,0.06,182.11,182.1,4.99666663]
[1755573482004,0.06,182.11,182.1,5.69666663]
[1755573482706,0.06,182.11,182.1,10.48815482]
[1755573482926,0.73,182.11,182.1,26.0]
[1755573483128,0.73,182.11,182.1,31.49148819]
[1755573484427,0.06,182.11,182.1,31.49148819]
[1755573484804,0.73,182.11,182.1,31.49148819]
[1755573485206,0.06,182.11,182.1,31.49148819]
[1755573485406,4.09848303,182.11,182.1,31.49148819]
[1755573485607,0.06,182.11,182.1,36.48815482]
[1755573485828,0.06,182.11,182.1,37.18815482]
[1755573486023,0.06,182.11,182.1,36.48815482]
[1755573486534,0.06,182.11,182.1,37.18815482]
[1755573487116,0.06,182.11,182.1,36.48815482]
[1755573487530,4.09919104,182.11,182.1,36.48815482]
[1755573487832,0.06,182.11,182.1,36.48815482]
[1755573487995,0.78,182.11,182.1,26.0]
[1755573488196,4.81918913,182.11,182.1,31.49148819]
[1755573488428,4.09918913,182.11,182.1,31.49148819]
[1755573488638,4.09918913,182.11,182.1,36.48815482]
[1755573488806,0.06,182.11,182.1,36.48815482]
[1755573489717,0.06,182.11,182.1,31.49148819]
[1755573489921,4.81964365,182.11,182.1,31.49148819]
[1755573491029,4.82066956,182.11,182.1,31.49148819]
[1755573491419,4.10066956,182.11,182.1,31.49148819]
[1755573491613,4.10066956,182.11,182.1,36.48815482]
[1755573491813,4.10066956,182.11,182.1,37.18815482]
[1755573492114,0.06,182.11,182.1,37.18815482]
[1755573494516,0.06,182.11,182.1,76.68815482]
[1755573494930,0.06,182.11,182.1,75.98815482]
[1755573495533,0.06,182.11,182.1,76.68815482]
[1755573495931,0.06,182.11,182.1,50.68815482]
[1755573496928,1e-08,182.11,182.1,65.79437039]
[1755573497327,0.06,182.13,182.12,46.1028822]
[1755573497663,3.70358819,182.17,182.12,85.6028822]
[1755573497950,7.69221283,182.16,182.15,26.0]
[1755573498157,7.69221283,182.16,182.15,65.5]
[1755573498326,4.04862464,182.16,182.15,65.5]
[1755573498650,4.04862464,182.16,182.15,66.2]
[1755573499147,4.04862464,182.16,182.15,70.49666663]
[1755573499859,4.04862464,182.16,182.15,75.98664741]
[1755573500023,4.04915066,182.16,182.15,75.98664741]
[1755573500223,0.06,182.17,182.15,76.68664741]
[1755573500422,0.06,182.17,182.16,4.99666663]
[1755573500646,0.78,182.17,182.16,4.99666663]
[1755573500948,0.06,182.17,182.16,4.99666663]
[1755573501376,0.78,182.17,182.16,4.99666663]
[1755573501543,0.78,182.17,182.1,4.99666663]
[1755573501544,5.77666663,182.17,182.1,4.99666663]
[1755573501726,13.41036506,182.16,182.1,49.96815482]
[1755573501927,0.72,182.16,182.14,30.99666663]
[1755573502127,0.06,182.17,182.15,30.99666663]
[1755573502426,0.06,182.17,182.16,30.99666663]
[1755573503452,0.06,182.17,182.16,31.69666663]
[1755573503756,0.06,182.17,182.16,71.17666663]
[1755573503958,0.06,182.17,182.16,76.66634603]
[1755573504954,0.06,182.17,182.16,75.96634603]
[1755573505139,0.06,182.17,182.16,76.66634603]
[1755573505336,0.06,182.17,182.16,70.9696794]
[1755573505638,0.06,182.17,182.16,36.48634603]
[1755573505841,0.78,182.17,182.13,4.99666663]
[1755573506027,0.72,182.16,182.15,26.0]
[1755573507538,0.06,182.17,182.15,26.0]
[1755573507932,0.06,182.17,182.16,10.48634603]
[1755573508135,0.06,182.17,182.16,31.4896794]
[1755573508322,0.06,182.17,182.16,36.48634603]
[1755573508731,0.06,182.17,182.16,76.66634603]
[1755573510037,0.06,182.17,182.16,75.96634603]
[1755573510226,0.06,182.17,182.16,36.48634603]
[1755573510426,0.78,182.17,182.16,26.0]
[1755573510657,0.06,182.17,182.16,31.4896794]
[1755573510839,0.06,182.17,182.16,36.48634603]
[1755573511239,0.06,182.17,182.16,31.4896794]
[1755573511444,0.06,182.17,182.16,32.1896794]
[1755573511657,0.06,182.17,182.16,37.18634603]
[1755573513031,0.06,182.17,182.16,26.2925616]
[1755573514274,1e-08,182.17,182.16,26.2925616]
[1755573516739,1e-08,182.17,182.16,21.29589497]
[1755573516934,1e-08,182.17,182.16,26.2925616]
[1755573517941,1e-08,182.17,182.16,11.18634603]
[1755573518568,1e-08,182.17,182.16,11.20634603]
[1755573518741,1e-08,182.17,182.16,6.2096794]
[1755573518930,1e-08,182.17,182.16,11.20634603]
[1755573519352,1e-08,182.17,182.16,10.48634603]
[1755573519540,1e-08,182.17,182.16,11.20634603]
[1755573519951,1e-08,182.17,182.16,26.3125616]
[1755573522564,1e-08,182.17,182.16,11.20634603]
[1755573523860,1e-08,182.17,182.16,6.2096794]
[1755573524045,1e-08,182.17,182.16,26.3125616]
[1755573524878,1e-08,182.18,182.17,15.10621557]
[1755573525046,1e-08,182.18,182.17,55.26621557]
[1755573525357,1e-08,182.18,182.17,60.2628822]
[1755573526176,1e-08,182.18,182.17,65.75226025]
[1755573526646,1e-08,182.19,182.17,65.75226025]
[1755573526970,1e-08,182.19,182.18,20.8228822]
[1755573527377,0.06,182.23,182.2,26.0]
[1755573527560,0.06,182.23,182.22,4.99666663]
[1755573527741,0.06,182.23,182.22,44.43666663]
[1755573528157,0.06,182.23,182.22,49.92453843]
[1755573529178,0.75,182.23,182.22,44.9278718]
[1755573529352,0.75,182.23,182.22,49.92453843]
[1755573529856,0.75,182.23,182.22,5.4878718]
[1755573531180,0.75,182.23,182.21,70.92809264]
[1755573531357,5.74666663,182.23,182.19,39.42]
[1755573531555,0.69,182.22,182.21,26.0]
[1755573531972,5.68666663,182.22,182.17,5.48937805]
[1755573532285,4.99666663,182.2,182.17,44.90937805]
[1755573532477,4.99666663,182.2,182.17,70.90937805]
[1755573532666,0.69,182.2,182.17,70.90937805]
[1755573532866,3.71935973,182.23,182.17,70.90937805]
[1755573532867,0.69,182.19,182.17,70.90937805]
[1755573533580,3.65976152,182.22,182.17,70.90937805]
[1755573533793,0.69,182.21,182.17,75.90604468]
[1755573533971,0.69,182.2,182.17,75.90604468]
[1755573534174,0.69,182.19,182.17,70.90937805]
[1755573537173,0.69,182.19,182.17,70.93937805]
[1755573537486,0.69,182.18,182.17,31.51937805]
[1755573537686,5.68666663,182.18,182.17,0.03]
[1755573539408,13.4231232,182.18,182.17,0.03]
[1755573539563,18.91219993,182.18,182.17,0.03]
[1755573539763,8.42645657,182.18,182.17,0.03]
[1755573539963,0.69,182.18,182.17,0.03]
[1755573540189,9.35102815,182.18,182.17,0.03]
[1755573540494,13.42433636,182.18,182.17,0.03]
[1755573541485,18.91341309,182.18,182.17,0.03]
[1755573542776,13.42433636,182.18,182.17,0.03]
[1755573542997,7.73766973,182.18,182.17,0.03]
[1755573543198,3.66436152,182.18,182.17,0.03]
[1755573543384,7.73220637,182.18,182.17,0.03]
[1755573543584,7.73258501,182.18,182.17,0.03]
[1755573544312,13.41925164,182.18,182.17,0.03]
[1755573544817,13.4231384,182.18,182.17,0.03]
[1755573545009,52.8431384,182.18,182.17,0.03]
[1755573545788,58.33221513,182.18,182.17,0.03]
[1755573545991,54.66785361,182.18,182.17,0.03]
[1755573546289,58.33393464,182.18,182.17,0.03]
[1755573546691,52.84485791,182.18,182.17,0.03]
[1755573547420,58.33393464,182.18,182.17,0.03]
[1755573550021,52.84485791,182.18,182.17,0.03]
[1755573550219,47.84819128,182.18,182.17,0.03]
[1755573550429,52.15485791,182.18,182.17,0.03]
[1755573550632,52.82485791,182.18,182.17,0.03]
[1755573553614,48.08274766,182.18,182.17,0.03]
[1755573553818,52.15273659,182.18,182.17,0.03]
[1755573554029,52.82273659,182.18,182.17,0.03]
[1755573554632,48.75274766,182.18,182.17,0.03]
[1755573554823,52.82231596,182.18,182.17,0.03]
[1755573557134,7.73564933,182.18,182.17,0.03]
[1755573557340,3.72388687,182.21,182.17,5.74666663]
[1755573557538,0.06,182.21,182.19,4.99666663]
[1755573557842,1e-08,182.21,182.2,71.11666663]
[1755573559634,1e-08,182.21,182.2,71.6084742]
[1755573560015,1e-08,182.21,182.2,32.2084742]
[1755573560909,1e-08,182.21,182.2,37.20514083]
[1755573561721,1e-08,182.21,182.2,32.2084742]
[1755573562741,1e-08,182.21,182.2,37.20514083]
[1755573569173,1e-08,182.21,182.2,47.31468977]
[1755573569321,1e-08,182.21,182.2,52.3113564]
[1755573570321,1e-08,182.21,182.2,54.5106694]
[1755573571649,1e-08,182.21,182.2,54.5406694]
[1755573574867,0.93942978,182.24,182.23,30.99666663]
[1755573575167,0.93942978,182.24,182.23,70.35666663]
[1755573575460,0.93942978,182.24,182.23,71.07666663]
[1755573576037,0.93942978,182.24,182.23,91.67045285]
[1755573576339,0.06,182.25,182.23,76.56423728]
[1755573576552,0.06,182.25,182.24,20.8228822]
[1755573576965,0.06,182.27,182.24,20.1028822]
[1755573577137,0.06,182.27,182.26,4.99666663]
[1755573577557,0.06,182.27,182.26,5.71666663]
[1755573577960,0.06,182.27,182.26,11.20333402]
[1755573580598,0.06,182.27,182.26,10.48333402]
[1755573580800,0.76,182.27,182.26,5.48666739]
[1755573581175,0.06,182.27,182.26,10.48333402]
[1755573581973,0.06,182.27,182.26,5.48666739]
[1755573582171,0.76,182.27,182.25,5.48689239]
[1755573582398,4.99666663,182.26,182.22,44.8278718]
[1755573582570,0.06,182.27,182.22,63.54421793]
[1755573582917,0.76,182.27,182.24,4.99666663]
[1755573583197,0.76,182.27,182.24,44.33666663]
[1755573583401,0.7,182.26,182.23,26.0]
[1755573583570,5.69666663,182.26,182.23,26.0]
[1755573583898,0.06,182.27,182.23,26.0]
[1755573583899,0.7,182.25,182.23,26.0]
[1755573584204,0.7,182.24,182.23,31.48740436]
[1755573584898,5.05666663,182.27,182.23,31.48740436]
[1755573585080,5.69666663,182.26,182.23,31.48740436]
[1755573585279,0.7,182.25,182.23,31.48740436]